bitfinex/quotes_SOLUSD_20250805
["timestamp","ask_amount","ask_price","bid_price","bid_amount"]
[1754401504927,26.0,167.49,167.45,6.64182385]
[1754401505113,26.0,167.52,167.48,11.9438618]
[1754401505322,26.0,167.5,167.48,55.9038618]
[1754401505621,26.68,167.5,167.48,43.96]
[1754401505804,0.68,167.49,167.48,43.96]
[1754401506229,0.68,167.49,167.38,14.93540508]
[1754401506408,37.9438618,167.5,167.45,11.9438618]
[1754401506612,38.6238618,167.5,167.45,55.9038618]
[1754401506816,26.68,167.5,167.45,56.5738618]
[1754401507230,11.9438618,167.49,167.45,43.96]
[1754401507530,26.0,167.5,167.48,11.9438618]
[1754401507710,30.5562568,167.53,167.48,11.9438618]
[1754401508028,5.99876743,167.54,167.5,11.9438618]
[1754401508241,31.99876743,167.54,167.49,56.5738618]
[1754401508404,32.67876743,167.54,167.49,56.5738618]
[1754401508607,0.68,167.53,167.49,55.9038618]
[1754401508923,11.9438618,167.51,167.49,43.96]
[1754401509134,18.59394568,167.51,167.49,43.96]
[1754401509639,12.6238618,167.5,167.46,43.96]
[1754401509808,12.6238618,167.49,167.46,43.96]
[1754401510134,0.68,167.48,167.46,43.96]
[1754401510320,31.97008388,167.51,167.46,43.96]
[1754401510525,44.59394568,167.51,167.46,44.63]
[1754401510719,26.0,167.51,167.46,56.5738618]
[1754401510909,26.0,167.51,167.47,11.9438618]
[1754401511115,0.03,167.49,167.46,56.5738618]
[1754401511325,0.03,167.49,167.46,44.63]
[1754401511511,0.03,167.49,167.46,43.96]
[1754401511719,0.68,167.48,167.46,43.96]
[1754401511930,0.68,167.48,167.44,11.9438618]
[1754401511931,11.9738618,167.49,167.44,11.9438618]
[1754401512144,0.03,167.49,167.44,12.6138618]
[1754401512352,12.6538618,167.49,167.44,11.9438618]
[1754401512527,0.71,167.49,167.44,12.6138618]
[1754401512727,11.9738618,167.49,167.44,11.9438618]
[1754401512909,0.68,167.48,167.44,11.9438618]
[1754401513210,11.9738618,167.49,167.44,11.9438618]
[1754401513211,0.03,167.49,167.46,11.9438618]
[1754401513613,0.03,167.49,167.45,11.9438618]
[1754401513810,0.68,167.48,167.44,11.9438618]
[1754401514206,11.9738618,167.49,167.43,43.94]
[1754401514207,0.03,167.49,167.45,12.6138618]
[1754401514407,0.03,167.49,167.43,43.94]
[1754401514408,0.03,167.49,167.46,0.67]
[1754401514724,0.03,167.49,167.48,11.9438618]
[1754401515969,0.03,167.49,167.47,43.94]
[1754401516663,0.03,167.49,167.47,55.8838618]
[1754401517262,5.97121872,167.47,167.43,43.92]
[1754401517450,12.6238618,167.46,167.43,43.92]
[1754401517966,0.68,167.46,167.43,43.92]
[1754401518462,0.68,167.46,167.41,11.9438618]
[1754401518463,11.9438618,167.46,167.41,11.9438618]
[1754401518665,17.91508052,167.47,167.42,44.59]
[1754401518871,11.9438618,167.46,167.42,44.59]
[1754401519164,0.68,167.46,167.42,43.92]
[1754401519468,23.90862404,167.48,167.43,12.6138618]
[1754401519673,5.97086804,167.48,167.44,11.9438618]
[1754401519876,5.97086804,167.48,167.44,12.6138618]
[1754401520083,0.68,167.47,167.42,55.8638618]
[1754401520252,0.68,167.46,167.42,55.8638618]
[1754401520567,11.9438618,167.47,167.42,61.83685195]
[1754401520766,12.6238618,167.47,167.42,62.50685195]
[1754401520958,11.9438618,167.47,167.42,62.50685195]
[1754401521158,12.6238618,167.47,167.42,44.59]
[1754401521371,5.9715753,167.46,167.42,44.59]
[1754401521592,12.6238618,167.45,167.42,43.92]
[1754401521751,17.9154371,167.46,167.42,44.59]
[1754401521942,18.5954371,167.46,167.42,43.92]
[1754401522373,5.9715753,167.46,167.43,43.9]
[1754401522586,11.9438618,167.47,167.43,43.9]
[1754401522880,17.91513309,167.47,167.43,43.9]
[1754401523177,18.59513309,167.47,167.43,43.9]
[1754401523676,5.97094541,167.48,167.44,12.6138618]
[1754401524046,11.9438618,167.45,167.38,0.67]
[1754401524251,11.9438618,167.42,167.36,11.9438618]
[1754401524466,0.68,167.44,167.38,11.9438618]
[1754401524853,12.6238618,167.44,167.39,11.9438618]
[1754401525057,0.68,167.44,167.4,55.8438618]
[1754401525373,26.0,167.45,167.41,11.9438618]
[1754401525589,20.89810089,167.48,167.41,11.9438618]
[1754401525590,5.97098452,167.48,167.43,11.9438618]
[1754401525748,26.0,167.47,167.43,44.57]
[1754401525943,26.0,167.47,167.43,56.5138618]
[1754401526586,0.03,167.49,167.46,11.9438618]
[1754401526789,0.03,167.49,167.48,11.9438618]
[1754401527285,12.6538618,167.49,167.44,43.9]
[1754401527448,18.59485238,167.48,167.44,43.9]
[1754401527654,0.68,167.47,167.44,43.9]
[1754401527859,18.59485238,167.48,167.44,43.9]
[1754401528179,6.65099058,167.48,167.44,55.8438618]
[1754401528371,0.68,167.48,167.44,61.81609362]
[1754401528571,6.00060053,167.49,167.45,11.9438618]
[1754401528767,32.00060053,167.49,167.44,55.8438618]
[1754401529077,32.70060053,167.49,167.44,61.81609214]
[1754401529574,26.03,167.49,167.45,18.62576074]
[1754401529887,0.03,167.49,167.47,11.9438618]
[1754401530263,0.03,167.49,167.47,55.8238618]
[1754401530618,0.03,167.54,167.48,12.6538618]
[1754401530768,0.03,167.54,167.53,11.9438618]
[1754401530961,0.03,167.54,167.53,55.8238618]
[1754401531168,0.03,167.54,167.53,56.5338618]
[1754401531596,0.03,167.54,167.53,62.50294196]
[1754401531774,0.03,167.54,167.53,56.5338618]
[1754401532090,0.03,167.54,167.53,55.8238618]
[1754401532296,0.03,167.54,167.53,43.88]
[1754401532494,0.03,167.54,167.53,55.8238618]
[1754401532672,0.03,167.54,167.53,56.5338618]
[1754401532997,0.03,167.54,167.53,62.50294196]
[1754401533491,0.03,167.54,167.53,50.55908016]
[1754401533795,0.03,167.54,167.53,62.50294196]
[1754401533992,0.03,167.54,167.53,61.79294196]
[1754401534289,0.03,167.54,167.53,43.88]
[1754401534595,0.03,167.54,167.51,26.71]
[1754401534596,0.73,167.54,167.52,43.86]
[1754401535300,0.7,167.53,167.52,43.86]
[1754401535487,12.6438618,167.53,167.5,43.86]
[1754401535681,11.9738618,167.54,167.5,43.86]
[1754401535890,0.03,167.54,167.53,11.9438618]
[1754401536095,0.03,167.54,167.53,56.5138618]
[1754401536584,0.03,167.54,167.53,55.8038618]
[1754401537298,0.03,167.54,167.53,56.5138618]
[1754401537507,0.03,167.54,167.53,77.7313191]
[1754401537712,0.03,167.54,167.53,78.32822711]
[1754401538808,0.03,167.54,167.53,62.48294196]
[1754401539497,0.03,167.54,167.53,78.32822711]
[1754401539807,0.03,167.54,167.53,66.38436531]
[1754401539987,0.03,167.54,167.53,77.7313191]
[1754401540305,0.03,167.54,167.53,61.77294196]
[1754401540685,0.03,167.54,167.53,77.58915753]
[1754401541894,0.03,167.54,167.53,61.77294196]
[1754401542101,0.03,167.54,167.53,55.8038618]
[1754401542410,0.03,167.54,167.53,61.77294196]
[1754401543513,0.03,167.54,167.53,62.48294196]
[1754401543696,0.03,167.54,167.53,55.7838618]
[1754401544325,0.73,167.54,167.53,43.84]
[1754401544622,0.03,167.54,167.53,43.82]
[1754401545331,0.03,167.54,167.53,76.83915753]
[1754401545532,0.03,167.54,167.53,77.54915753]
[1754401546395,0.03,167.54,167.53,76.83915753]
[1754401547324,0.03,167.54,167.53,61.73294196]
[1754401548719,0.03,167.54,167.53,55.7638618]
[1754401548895,0.03,167.54,167.53,43.82]
[1754401549102,0.73,167.54,167.53,43.82]
[1754401549321,0.73,167.54,167.47,3.6469013]
[1754401549626,0.73,167.54,167.49,11.9438618]
[1754401549797,0.03,167.54,167.52,11.9438618]
[1754401549992,0.03,167.54,167.53,43.82]
[1754401551101,0.03,167.54,167.53,55.7638618]
[1754401551295,0.03,167.54,167.53,71.58007737]
[1754401551512,0.03,167.54,167.53,77.54915753]
[1754401552116,0.03,167.54,167.53,77.6913191]
[1754401552322,0.03,167.54,167.53,76.83915753]
[1754401552490,0.03,167.54,167.52,26.0]
[1754401552491,0.03,167.54,167.52,11.9438618]
[1754401552688,0.03,167.54,167.53,55.7438618]
[1754401552900,0.03,167.54,167.53,71.56007737]
[1754401553094,0.03,167.54,167.53,77.52915753]
[1754401553918,0.03,167.54,167.52,5.9692992]
[1754401554121,0.03,167.54,167.53,43.8]
[1754401554916,0.03,167.54,167.53,55.7438618]
[1754401555312,0.03,167.54,167.49,0.71]
[1754401555515,12.6438618,167.53,167.48,11.9438618]
[1754401555717,0.03,167.54,167.5,11.9438618]
[1754401556026,0.03,167.54,167.51,55.7438618]
[1754401556227,0.03,167.54,167.52,11.9438618]
[1754401556402,0.03,167.54,167.53,43.8]
[1754401556819,0.73,167.54,167.53,43.8]
[1754401557399,0.03,167.54,167.53,43.8]
[1754401558528,0.03,167.54,167.53,55.7438618]
[1754401558719,0.03,167.54,167.53,43.8]
[1754401558918,0.03,167.54,167.53,55.7438618]
[1754401559113,0.03,167.54,167.53,61.71294196]
[1754401559310,0.03,167.54,167.53,55.7438618]
[1754401559516,0.03,167.54,167.53,61.71294196]
[1754401560030,0.03,167.54,167.53,77.48915753]
[1754401560728,0.03,167.54,167.53,43.8]
[1754401560930,12.6738618,167.54,167.49,0.06]
[1754401561227,0.7,167.53,167.5,43.78]
[1754401561527,0.03,167.54,167.51,11.9438618]
[1754401561730,0.03,167.54,167.52,43.78]
[1754401562030,0.03,167.54,167.53,11.9438618]
[1754401563132,0.03,167.54,167.53,18.58294196]
[1754401564618,0.03,167.54,167.53,33.68915753]
[1754401565703,0.03,167.54,167.53,43.78]
[1754401565899,0.03,167.54,167.53,55.7238618]
[1754401566730,0.03,167.54,167.53,71.64223894]
[1754401566908,0.03,167.54,167.53,77.6113191]
[1754401568032,0.03,167.54,167.53,61.69294196]
[1754401568241,0.03,167.54,167.53,55.7238618]
[1754401568447,0.03,167.54,167.53,77.46915753]
[1754401568727,0.03,167.54,167.53,76.79915753]
[1754401569346,1e-08,167.55,167.54,15.24837714]
[1754401569503,1e-08,167.55,167.54,27.19223894]
[1754401569834,1e-08,167.55,167.54,27.86223894]
[1754401571141,1e-08,167.55,167.54,33.16096282]
[1754401571508,1e-08,167.55,167.54,33.83096282]
[1754401572348,0.03,167.56,167.55,0.14216157]
[1754401572550,0.03,167.56,167.55,70.95223894]
[1754401572711,0.73,167.56,167.55,55.7038618]
[1754401572907,0.03,167.56,167.55,55.7038618]
[1754401573111,0.03,167.56,167.55,61.67222945]
[1754401573308,0.73,167.56,167.55,43.76]
[1754401573924,0.03,167.56,167.55,61.67222945]
[1754401575020,0.73,167.56,167.55,55.6838618]
[1754401575222,0.73,167.56,167.55,43.74]
[1754401575443,5.1868495,167.56,167.55,43.74]
[1754401575614,0.73,167.56,167.55,43.74]
[1754401575935,5.18910004,167.56,167.55,43.74]
[1754401577057,5.18920707,167.56,167.55,43.74]
[1754401577254,0.73,167.56,167.55,43.74]
[1754401577432,5.18938604,167.56,167.55,43.74]
[1754401577840,4.48938604,167.56,167.55,61.65222945]
[1754401578020,0.03,167.56,167.55,77.57060659]
[1754401578225,0.03,167.57,167.56,15.24837714]
[1754401578533,0.03,167.57,167.56,27.86223894]
[1754401578821,0.03,167.57,167.56,55.6838618]
[1754401579028,4.45720049,167.62,167.58,15.10621557]
[1754401579232,0.7,167.64,167.59,44.41]
[1754401579436,0.7,167.64,167.63,11.9438618]
[1754401579631,4.45557181,167.64,167.63,43.74]
[1754401579837,10.42073525,167.64,167.63,43.74]
[1754401580346,11.12073525,167.64,167.63,43.74]
[1754401581334,5.15557181,167.64,167.63,43.74]
[1754401581822,4.45557181,167.64,167.63,61.64938109]
[1754401582022,0.9,167.66,167.63,55.6838618]
[1754401582222,0.9,167.66,167.65,11.9438618]
[1754401582439,0.2,167.66,167.65,55.6638618]
[1754401582757,0.9,167.66,167.63,11.9438618]
[1754401583066,5.15278238,167.65,167.64,43.72]
[1754401583236,0.7,167.65,167.64,43.72]
[1754401583434,0.2,167.66,167.64,55.6638618]
[1754401583654,0.2,167.66,167.65,11.9438618]
[1754401583955,0.2,167.66,167.64,49.68511501]
[1754401584138,0.2,167.66,167.65,11.9438618]
[1754401585240,0.2,167.66,167.65,33.82704657]
[1754401585437,1e-08,167.66,167.65,33.82704657]
[1754401585638,0.2,167.71,167.69,15.10621557]
[1754401585823,0.2,167.71,167.7,55.6638618]
[1754401586021,0.2,167.71,167.7,56.3338618]
[1754401587324,0.2,167.71,167.7,62.29689101]
[1754401587537,0.2,167.71,167.7,61.62689101]
[1754401588031,0.2,167.71,167.7,62.29689101]
[1754401588529,0.2,167.71,167.7,80.5663771]
[1754401588948,0.2,167.72,167.7,80.5663771]
[1754401589150,0.2,167.72,167.71,28.4585063]
[1754401589340,0.03,167.73,167.71,60.42117996]
[1754401589660,0.03,167.73,167.72,56.3138618]
[1754401589830,0.03,167.75,167.74,26.0]
[1754401590042,0.03,167.75,167.74,81.6238618]
[1754401590268,0.03,167.75,167.74,82.2938618]
[1754401590568,0.03,167.75,167.74,96.87223894]
[1754401590741,0.03,167.75,167.74,97.54223894]
[1754401591348,0.03,167.75,167.74,102.83384618]
[1754401592141,0.03,167.75,167.74,43.90546904]
[1754401592371,0.03,167.75,167.74,87.58546904]
[1754401592865,0.03,167.75,167.74,103.4300069]
[1754401593074,0.03,167.75,167.74,102.83384618]
[1754401593962,0.03,167.75,167.74,61.58546904]
[1754401594438,0.71,167.75,167.74,61.58546904]
[1754401594642,0.03,167.75,167.74,76.81384618]
[1754401594954,0.03,167.75,167.74,77.48384618]
[1754401598550,0.03,167.75,167.74,76.81384618]
[1754401599270,0.03,167.75,167.74,77.48384618]
[1754401600177,0.03,167.75,167.74,76.81384618]
[1754401601262,0.03,167.75,167.74,33.15384618]
[1754401601462,0.03,167.75,167.74,76.79384618]
[1754401601658,0.68,167.81,167.75,15.24837714]
[1754401601853,0.68,167.81,167.8,11.9438618]
[1754401602055,0.68,167.81,167.8,61.52333736]
[1754401602264,48.1636301,167.87,167.8,61.52333736]
[1754401602265,0.71,167.85,167.8,61.52333736]
[1754401602582,0.03,167.85,167.84,11.9438618]
[1754401602777,0.03,167.85,167.84,55.5638618]
[1754401602957,0.03,167.85,167.84,70.81223894]
[1754401603853,0.03,167.85,167.84,76.77029423]
[1754401604177,0.03,167.85,167.84,49.57805529]
[1754401604358,0.71,167.85,167.84,61.52191709]
[1754401604560,0.03,167.85,167.84,61.52191709]
[1754401604876,0.03,167.85,167.84,76.77029423]
[1754401605047,0.03,167.85,167.84,77.36609975]
[1754401605252,0.03,167.85,167.84,78.03609975]
[1754401605563,0.03,167.85,167.84,77.36609975]
[1754401606576,0.03,167.85,167.84,76.77029423]
[1754401606750,0.03,167.85,167.84,55.5638618]
[1754401606751,0.71,167.85,167.84,55.5638618]
[1754401606958,0.71,167.85,167.84,55.5438618]
[1754401607352,0.71,167.85,167.84,61.50191709]
[1754401607553,0.03,167.85,167.84,76.75029423]
[1754401608278,0.03,167.85,167.84,77.42029423]
[1754401608463,0.03,167.85,167.84,64.80643243]
[1754401608781,0.71,167.85,167.81,26.0]
[1754401608986,0.71,167.85,167.83,11.9438618]
[1754401609284,0.68,167.84,167.82,11.9438618]
[1754401609481,0.03,167.85,167.83,43.6]
[1754401610067,0.68,167.84,167.83,43.6]
[1754401610796,0.03,167.85,167.83,61.50227209]
[1754401610964,0.03,167.85,167.84,11.9438618]
[1754401611482,0.03,167.85,167.84,27.86223894]
[1754401612289,1e-08,167.85,167.84,33.82029423]
[1754401613183,1e-08,167.85,167.84,35.99401038]
[1754401614066,1e-08,167.85,167.84,33.82029423]
[1754401614797,1e-08,167.85,167.84,35.99458655]
[1754401615957,1e-08,167.87,167.86,41.10621557]
[1754401616160,1e-08,167.87,167.86,97.34797348]
[1754401616376,1e-08,167.87,167.86,98.01797348]
[1754401616890,1e-08,167.87,167.86,103.97531888]
[1754401617065,1e-08,167.87,167.86,103.30531888]
[1754401619192,1e-08,167.87,167.86,91.36145708]
[1754401619486,1e-08,167.87,167.86,103.97531888]
[1754401619667,1e-08,167.87,167.86,106.15159855]
[1754401620786,0.1,167.9,167.89,59.14851983]
[1754401620973,0.1,167.9,167.89,102.68851983]
[1754401621483,0.76,167.9,167.82,30.46355801]
[1754401621683,0.76,167.9,167.86,26.0]
[1754401621863,0.66,167.89,167.87,55.4838618]
[1754401622188,0.66,167.88,167.87,55.4838618]
[1754401622490,0.66,167.88,167.87,57.66909957]
[1754401622884,0.66,167.88,167.87,63.62609009]
[1754401623278,0.66,167.88,167.87,8.14222829]
[1754401623586,0.66,167.88,167.87,63.62824127]
[1754401623890,0.66,167.88,167.87,45.72738895]
[1754401624087,0.66,167.88,167.87,43.54]
[1754401624969,0.66,167.88,167.87,49.49699052]
[1754401625169,0.66,167.88,167.87,51.68816714]
[1754401625374,0.1,167.9,167.87,63.63202894]
[1754401625692,0.66,167.89,167.88,14.13503842]
[1754401625892,0.66,167.89,167.88,11.9438618]
[1754401626195,0.66,167.89,167.88,14.13812175]
[1754401626390,0.66,167.89,167.88,45.71425995]
[1754401627793,0.1,167.9,167.88,57.65812175]
[1754401628100,0.1,167.9,167.89,14.13812175]
[1754401628274,0.1,167.9,167.89,2.19425995]
[1754401628474,17.99978794,167.9,167.89,2.19425995]
[1754401628708,12.0438618,167.9,167.89,45.71425995]
[1754401628910,23.08196557,167.9,167.83,26.0]
[1754401629209,23.08196557,167.9,167.77,52.92]
[1754401629210,11.9438618,167.84,167.77,17.90440301]
[1754401629383,11.9438618,167.81,167.78,43.52]
[1754401629584,5.00201937,167.8,167.78,43.52]
[1754401629787,0.57,167.8,167.78,43.52]
[1754401629983,16.94618745,167.79,167.75,0.06]
[1754401630184,11.9438618,167.76,167.75,0.06]
[1754401630408,16.37618745,167.76,167.73,43.52]
[1754401630589,11.9438618,167.74,167.73,43.52]
[1754401630921,22.84779469,167.74,167.73,43.52]
[1754401631728,10.90393289,167.74,167.73,43.52]
[1754401631891,22.84779469,167.74,167.73,43.52]
[1754401632210,4.43232565,167.74,167.73,43.52]
[1754401632517,11.9438618,167.76,167.73,43.52]
[1754401632686,11.9438618,167.8,167.75,11.9438618]
[1754401633012,4.42608484,167.79,167.76,55.4638618]
[1754401633190,17.9030559,167.81,167.76,61.42475566]
[1754401633391,4.42481801,167.8,167.76,55.4638618]
[1754401633612,4.42481801,167.79,167.76,43.52]
[1754401633808,11.9438618,167.77,167.76,43.52]
[1754401634021,26.0,167.75,167.74,43.52]
[1754401634195,12.4538618,167.75,167.74,43.52]
[1754401634391,0.51,167.75,167.72,43.52]
[1754401634594,26.51,167.78,167.72,43.52]
[1754401634801,11.9438618,167.75,167.72,43.52]
[1754401635008,11.9438618,167.74,167.72,43.52]
[1754401635206,11.9438618,167.73,167.72,43.52]
[1754401635404,11.9438618,167.74,167.72,43.52]
[1754401635900,11.9438618,167.73,167.72,43.52]
[1754401636103,12.4538618,167.73,167.67,42.88]
[1754401636316,11.9438618,167.71,167.68,43.54]
[1754401636511,11.9438618,167.74,167.69,12.6138618]
[1754401636799,11.9438618,167.76,167.71,11.9438618]
[1754401636995,11.9438618,167.76,167.72,43.52]
[1754401637226,11.9438618,167.76,167.72,49.4821463]
[1754401637527,26.0,167.79,167.74,11.9438618]
[1754401637726,11.9438618,167.8,167.75,44.19]
[1754401637911,11.9438618,167.79,167.75,44.19]
[1754401638224,11.9438618,167.79,167.75,43.52]
[1754401638530,0.51,167.8,167.75,43.52]
[1754401638726,11.9438618,167.79,167.75,43.52]
[1754401639519,11.9438618,167.82,167.77,11.9438618]
[1754401639833,0.51,167.84,167.78,43.54]
[1754401640035,4.41739456,167.83,167.78,43.54]
[1754401640235,11.9438618,167.82,167.78,43.54]
[1754401640525,17.90281606,167.82,167.78,43.54]
[1754401640730,11.9438618,167.82,167.78,43.54]
[1754401640913,11.9438618,167.83,167.79,0.67]
[1754401641112,5.95805529,167.84,167.78,43.54]
[1754401641331,4.41672578,167.83,167.78,43.54]
[1754401641624,0.51,167.83,167.78,43.54]
[1754401642512,5.95876534,167.82,167.78,43.54]
[1754401642718,31.9585255,167.83,167.79,0.67]
[1754401642916,11.9438618,167.84,167.8,0.67]
[1754401643237,37.9438618,167.85,167.81,43.52]
[1754401643406,43.90165268,167.85,167.81,43.52]
[1754401644110,11.9438618,167.85,167.81,43.52]
[1754401644305,11.9438618,167.85,167.81,44.19]
[1754401644536,11.9738618,167.85,167.81,44.19]
[1754401645110,0.03,167.83,167.81,44.19]
[1754401645316,0.03,167.83,167.81,50.14905068]
[1754401645517,0.03,167.83,167.81,44.19]
[1754401646526,0.03,167.83,167.81,43.52]
[1754401646715,0.03,167.83,167.82,0.67]
[1754401646911,11.9738618,167.83,167.78,0.67]
[1754401647227,11.9738618,167.83,167.79,44.19]
[1754401647432,0.03,167.83,167.8,0.67]
[1754401647822,11.9738618,167.83,167.79,43.52]
[1754401648207,11.9438618,167.81,167.79,43.52]
[1754401648833,11.9438618,167.82,167.79,43.52]
[1754401649233,11.9438618,167.82,167.79,44.18]
[1754401650710,11.9438618,167.82,167.79,43.52]
[1754401650910,17.9028803,167.82,167.79,43.52]
[1754401651138,11.9438618,167.8,167.79,43.52]
[1754401651439,11.9438618,167.81,167.79,43.52]
[1754401652350,5.98853155,167.83,167.79,44.18]
[1754401652517,11.9438618,167.81,167.79,44.18]
[1754401652718,11.9438618,167.81,167.79,43.52]
[1754401653113,11.9438618,167.81,167.79,44.18]
[1754401653839,5.98848602,167.83,167.79,43.52]
[1754401653840,0.03,167.83,167.79,43.52]
[1754401654024,26.03,167.83,167.8,0.66]
[1754401654226,37.9738618,167.83,167.8,0.66]
[1754401654926,43.93233623,167.83,167.8,0.66]
[1754401655232,11.9438618,167.82,167.79,43.52]
[1754401655421,11.9438618,167.81,167.79,43.52]
[1754401655608,12.4538618,167.8,167.73,0.66]
[1754401655812,11.9438618,167.76,167.74,43.5]
[1754401656009,11.9438618,167.75,167.74,43.5]
[1754401657215,0.51,167.81,167.74,56.1038618]
[1754401657416,11.9438618,167.79,167.74,44.16]
[1754401657616,11.9438618,167.79,167.75,0.66]
[1754401657832,11.9438618,167.79,167.74,49.46151287]
[1754401658141,11.9438618,167.76,167.74,43.5]
[1754401658526,11.9438618,167.77,167.74,44.16]
[1754401658733,11.9438618,167.76,167.74,43.5]
[1754401659439,11.9438618,167.75,167.72,0.72]
[1754401659747,11.9438618,167.76,167.74,43.48]
[1754401660045,11.9438618,167.76,167.74,44.14]
[1754401660422,11.9438618,167.78,167.75,0.66]
[1754401660818,11.9438618,167.77,167.74,43.48]
[1754401661223,11.9438618,167.77,167.75,0.66]
[1754401662750,0.03,167.83,167.76,12.6038618]
[1754401662936,0.03,167.83,167.8,11.9438618]
[1754401663133,0.03,167.83,167.81,44.14]
[1754401663537,0.03,167.83,167.81,43.48]
[1754401663722,11.9438618,167.82,167.81,43.48]
[1754401664419,17.90262714,167.82,167.81,43.48]
[1754401665232,11.9438618,167.82,167.81,43.48]
[1754401665448,0.03,167.83,167.81,43.48]
[1754401665648,5.98847241,167.83,167.81,43.48]
[1754401665948,17.93233421,167.83,167.81,43.48]
[1754401666247,0.03,167.83,167.81,43.48]
[1754401666757,0.03,167.83,167.81,44.14]
[1754401667248,0.03,167.83,167.82,0.66]
[1754401668637,0.03,167.83,167.81,43.48]
[1754401668837,11.9738618,167.83,167.81,43.48]
[1754401669347,0.03,167.83,167.81,44.14]
[1754401669535,0.03,167.83,167.82,0.66]
[1754401670024,0.03,167.83,167.82,12.6038618]
[1754401670224,0.03,167.83,167.82,0.66]
[1754401673461,4.47352262,167.83,167.81,43.48]
[1754401673640,0.03,167.83,167.82,44.1]
[1754401675139,16.92719868,167.83,167.75,15.10621557]
[1754401675340,11.9438618,167.81,167.76,56.0438618]
[1754401675535,11.9438618,167.82,167.77,12.6038618]
[1754401675855,16.38763587,167.81,167.78,44.1]
[1754401676055,0.03,167.83,167.78,44.1]
[1754401676270,10.40263495,167.82,167.78,44.1]
[1754401676456,4.44377314,167.81,167.79,0.66]
[1754401676669,17.90272361,167.82,167.8,43.44]
[1754401676831,4.44501747,167.81,167.8,43.44]
[1754401678155,0.03,167.83,167.8,44.1]
[1754401678365,4.44570365,167.82,167.81,0.66]
[1754401678544,4.44570365,167.82,167.81,43.44]
[1754401678864,10.40446899,167.82,167.81,43.44]
[1754401679051,10.40446899,167.82,167.81,44.12]
[1754401679052,4.44570365,167.82,167.81,44.12]
[1754401679362,0.03,167.83,167.81,44.12]
[1754401680138,0.03,167.83,167.82,0.68]
[1754401680348,4.47602202,167.83,167.82,0.68]
[1754401680738,4.47602202,167.83,167.82,18.58262714]
[1754401680935,0.03,167.83,167.82,33.68884271]
[1754401681156,0.03,167.85,167.84,41.24837714]
[1754401681367,0.03,167.85,167.84,97.20804446]
[1754401681668,0.1,167.91,167.9,0.14216157]
[1754401681883,0.1,167.91,167.9,70.61223894]
[1754401682246,0.1,167.91,167.9,76.56816508]
[1754401682768,0.1,167.91,167.9,55.3638618]
[1754401682943,0.1,167.91,167.9,43.42]
[1754401683139,0.1,167.91,167.86,26.0]
[1754401683445,0.1,167.91,167.9,11.9438618]
[1754401683794,0.1,167.91,167.9,55.3638618]
[1754401683975,0.1,167.91,167.9,70.61223894]
[1754401684347,0.2,167.99,167.9,70.61223894]
[1754401684348,0.2,167.99,167.92,0.14216157]
[1754401684639,0.2,167.99,167.97,11.9438618]
[1754401684863,0.2,167.99,167.98,43.4]
[1754401685661,12.8238618,167.99,167.98,43.4]
[1754401686261,18.77659708,167.99,167.98,43.4]
[1754401686570,0.88,167.99,167.98,43.4]
[1754401686867,0.2,167.99,167.98,43.4]
[1754401687371,6.15273528,167.99,167.98,43.4]
[1754401687670,18.77659708,167.99,167.98,43.4]
[1754401688049,12.8238618,167.99,167.98,43.4]